Cogmind - Beta 9.6 @@@ ROGUE MODE // 2020.09.07 @ 19:55:13 Player: Finestep Result: Destroyed by Y-45 Defender with Heavy Assault Rifle Performance ------------- Evolutions (1) 500 Regions Visited (4) 800 Robots Destroyed (116) 580 Value Destroyed (2620) 2620 Prototype IDs (7) 140 Alien Tech Used (0) 0 Bonus (368) 368 TOTAL SCORE: 5008 Bonus ------- High Alert Combat Kills 248 Follower Combat Kills 149 Friendly Fire -29 Cogmind --------- Core Integrity 0/400 Matter 269/300 Energy 280/280 System Corruption 0% Temperature Cool (0) Movement Treading (200) Ox2 Location -9/Storage Parts ------- > --- POWER (1) -------- Heavy Ion Engine > --- PROPULSION (2) --- Light Treads Light Treads > --- UTILITY (4) ------ High-capacity Storage Unit High-capacity Storage Unit High-capacity Storage Unit Core Shielding > --- WEAPON (2) ------- Improved Assault Rifle Improved Assault Rifle > --- INVENTORY (28) --- Cooled Ion Engine Light Treads Light Treads Light Treads Armored Wheel Armored Wheel Armored Wheel Large Battery (300) High-capacity Matter Pod (200) Advanced Terrain Scanner Light Armor Plating Light Armor Plating Light Armor Plating Beamcaster Heavy Assault Rifle Improved Assault Rifle Improved Assault Rifle Improved Assault Rifle Improved Assault Rifle Improved Assault Rifle Improved Assault Rifle Grenade Launcher Rocket Launcher Improved Datajack Improved Datajack Plasma Cutter Katana Peak State ------------ > --- POWER ------------ Cooled Ion Engine > --- PROPULSION ------- Light Treads Light Treads > --- UTILITY ---------- High-capacity Storage Unit High-capacity Storage Unit High-capacity Storage Unit Core Shielding > --- WEAPON ----------- Improved Assault Rifle Improved Assault Rifle > --- INVENTORY -------- Cooled Ion Engine Light Treads Light Treads Light Treads Armored Wheel Armored Wheel Armored Wheel Large Battery High-capacity Matter Pod Advanced Terrain Scanner Light Armor Plating Light Armor Plating Light Armor Plating Beamcaster Heavy Assault Rifle Improved Assault Rifle Improved Assault Rifle Improved Assault Rifle Improved Assault Rifle Improved Assault Rifle Improved Assault Rifle Grenade Launcher Rocket Launcher Improved Datajack Improved Datajack Mining Laser Plasma Cutter Katana [Rating: 21] Favorites ----------- Power Ion Engine Engine Ion Engine Propulsion Light Treads Treads Light Treads Flight Unit Improved Flight Unit Utility High-capacity Storage Unit Device Heat Sink Storage High-capacity Storage Unit Processor Seismic Analyzer Protection Light Armor Plating Weapon Light Assault Rifle Energy Gun Medium Laser Ballistic Gun Light Assault Rifle Ballistic Cannon Improved Light Cannon Launcher Grenade Launcher Slashing Weapon Katana Build | -11 -10 -10 -9 -9 ------- Run | Scr Mat Min Mat Sto Slots Evolved 2 | . . . 2 . Power . | . . . . . Propulsion . | . . . . . Utility 2 | . . . 2 . Weapon . | . . . . . Parts Attached 66 | 7 9 3 24 23 Power 7 | 1 1 . 2 3 Engine 7 | 1 1 . 2 3 Core . | . . . . . Reactor . | . . . . . Propulsion 15 | 2 . . 8 5 Treads 14 | 2 . . 7 5 Leg . | . . . . . Wheel . | . . . . . Hover . | . . . . . Flight 1 | . . . 1 . Utility 14 | 2 2 . 6 4 Device 1 | . . . 1 . Storage 5 | 2 2 . 1 . Processor 1 | . . . 1 . Hackware . | . . . . . Protection 7 | . . . 3 4 Artifact . | . . . . . Weapon 30 | 2 6 3 8 11 Energy Gun 3 | 1 1 . . 1 Energy Cannon . | . . . . . Ballistic Gun 19 | 1 3 2 6 7 Ballistic Cannon 2 | . . . . 2 Launcher 5 | . 2 1 2 . Special Weapon . | . . . . . Impact Weapon . | . . . . . Slashing Weapon 1 | . . . . 1 Piercing Weapon . | . . . . . Special Melee Weapon . | . . . . . Unidentified Prototypes 2 | . . . 1 1 Parts Lost 14 | . 3 . 7 4 Power 2 | . 1 . 1 . Propulsion 4 | . . . 2 2 Utility 3 | . . . 1 2 Weapon 5 | . 2 . 3 . Highest Loss Streak 2 | . 2 . 2 2 Average Slot Usage (%) 98 | . 97 100 99 99 Engine 12 | . 14 14 10 11 Treads 24 | . 28 28 21 21 Storage 30 | . 28 28 33 33 Protection 5 | . . . 8 10 Energy Gun 1 | . 8 . . . Ballistic Gun 20 | . 17 28 21 16 Ballistic Cannon 1 | . . . . 5 Naked Turns . | . . . . . Heaviest Build 114 | 15 72 72 111 114 Greatest Support 40 | 40 40 40 40 40 Greatest Overweight (x) 5 | . 1 1 5 5 Average Overweight (x) 1 | . . 1 2 2 Largest Inventory Capacity 28 | 8 20 20 28 28 Average Capacity 23 | 5 18 20 27 28 Most Carried 28 | 3 19 19 28 28 Average Carried 20 | 1 13 18 21 27 Final Capacity 28 | 8 20 20 28 28 Final Carried 28 | 3 18 19 28 27 Class Distribution -------------------- 94% | Hauler-Mutant 5% | Mutant Dominant Class ---------------- Hauler-Mutant | -10/Materials Hauler-Mutant | -10/Mines Hauler-Mutant | -9/Materials Hauler-Mutant | -9/Storage Resources | -11 -10 -10 -9 -9 ----------- Run | Scr Mat Min Mat Sto Matter Collected 2327 | 294 369 124 629 911 Remotely . | . . . . . Salvage Created 3617 | 104 428 112 1367 1606 Parts 255 | 3 37 17 79 119 Haulers Intercepted 10 | . 1 . 4 5 Recyclers Shooed 4 | 1 . 1 2 . Parts Field Recycled . | . . . . . Retrieved Matter . | . . . . . Parts Self-Destructed . | . . . . . Prevented . | . . . . . Kills | -11 -10 -10 -9 -9 ------- Run | Scr Mat Min Mat Sto Combat Hostiles Destroyed 81 | . 13 5 28 35 Guns 66 | . 10 2 25 29 Cannons 5 | . . . . 5 AOE 10 | . 3 3 3 1 Classes Destroyed 11 | 2 6 . 1 2 Worker 8 | . 1 1 4 2 Builder 1 | . . . . 1 Tunneler 3 | 1 2 . . . Hauler 10 | . 1 . 4 5 Recycler 5 | 1 1 . 1 2 Operator 4 | . 1 . 1 2 Watcher 4 | . 2 . 1 1 Swarmer 28 | . 9 3 8 8 Grunt 41 | . 4 2 15 20 Duelist 1 | . . . . 1 Sentry 11 | . . . 5 6 Best Kill Streak 7 | 1 4 4 6 7 Combat Bots Only 7 | . 3 4 3 7 Max Kills in Single Turn 3 | 1 3 2 2 2 Gunslinging 1 | . 1 . . 1 Exploded 3 | . 3 2 2 1 Melee . | . . . . . Uniques/NPCs Destroyed . | . . . . . Combat | -11 -10 -10 -9 -9 -------- Run | Scr Mat Min Mat Sto Damage Taken 3019 | . 445 141 1060 1373 Core 496 | . 76 18 162 240 Absorbed by Shields . | . . . . . Core Remaining (%) 81 | 100 . 62 . . Volleys Fired 366 | 8 78 19 134 127 Largest 2 | 2 2 2 2 2 Hottest 95 | 70 70 40 40 95 Shots Fired 695 | 15 135 36 257 252 Gun 628 | 15 129 34 255 195 Cannon 57 | . . . . 57 Launcher 10 | . 6 2 2 . Special . | . . . . . Kinetic 632 | 8 87 34 255 248 Thermal 53 | 7 42 . . 4 Explosive 10 | . 6 2 2 . Electromagnetic . | . . . . . Robot Hit Streak 34 | 7 10 9 17 34 Robot Miss Streak 8 | 2 4 2 6 8 Penetration Max . | . . . . . Secondary Targets 7 | . 1 1 4 1 Max Gunslinging Chain 1 | . 1 1 1 1 Shots Hit Robots 467 | 9 75 26 179 178 Core Hits 198 | 3 31 12 80 72 Critical Hits 5 | . 1 2 . 2 Critical Kills 2 | . 1 1 . . Critical Parts Destroyed 3 | . . 1 . 2 Melee Attacks 1 | . . . . 1 Impact . | . . . . . Slashing 1 | . . . . 1 Piercing . | . . . . . Sneak Attacks . | . . . . . Combat Hostiles . | . . . . . Follow-up Attacks . | . . . . . Damage Inflicted 7024 | 88 1522 310 2139 2965 Guns 5225 | 88 920 211 1860 2146 Cannons 563 | . . . . 563 Explosions 1231 | . 602 94 279 256 Melee . | . . . . . Ramming 5 | . . 5 . . Kinetic 5440 | 63 619 211 1860 2687 Thermal 809 | 25 762 . . 22 Explosive 770 | . 141 94 279 256 Electromagnetic . | . . . . . Impact . | . . . . . Slashing . | . . . . . Piercing . | . . . . . Highest Corruption 1 | . 1 1 . . Average Corruption 1 | . 1 1 . . Corruption Purged . | . . . . . Effects 11 | . 3 8 . . Message Errors 8 | . 2 6 . . Energy Discharges 1 | . 1 . . . Data Loss (minor) 2 | . . 2 . . Overload Shots . | . . . . . Overflow Damage 233 | . 113 . 35 85 Projectiles . | . . . . . Explosions 233 | . 113 . 35 85 Melee . | . . . . . Knockbacks 3 | . . . . 3 Impact . | . . . . . Kinetic 3 | . . . . 3 Secondary . | . . . . . Self-Inflicted Damage 117 | . . . . 117 Shots 2 | . . . . 2 Rammed 1 | . . 1 . . Targets Rammed 1 | . . 1 . . Kicked . | . . . . . Crushed . | . . . . . Highest Temperature 451 | 36 84 15 12 451 Average Temperature 29 | 15 15 8 6 63 Received Heat Transfer 861 | . 60 66 390 345 Siege Activations . | . . . . . Robots Corrupted . | . . . . . Combat Hostiles . | . . . . . Parts Fried . | . . . . . Impact Corruptions . | . . . . . Robots Melted . | . . . . . Combat Hostiles . | . . . . . Parts Melted 3 | . 3 . . . Heat Transferred 1299 | 74 1188 . . 37 Parts Sabotaged . | . . . . . Parts Stolen . | . . . . . Parts Stripped . | . . . . . Power Chain Reactions . | . . . . . Missiles Intercepted . | . . . . . Alert | -11 -10 -10 -9 -9 ------- Run | Scr Mat Min Mat Sto Peak Influence 682 | 10 165 121 465 682 Average Influence 223 | 3 49 20 315 447 Maximum Alert Level 2 | . . . 2 2 Low Security (%) 49 | 100 100 100 15 4 Level 1 24 | . . . 53 28 Level 2 25 | . . . 31 67 Level 3 . | . . . . . Level 4 . | . . . . . Level 5 . | . . . . . High Security . | . . . . . Max Security . | . . . . . Squads Dispatched 12 | . 2 . 5 5 Investigation 4 | . . . 3 1 Extermination . | . . . . . Reinforcement 8 | . 2 . 2 4 Assault . | . . . . . Garrison . | . . . . . Intercept . | . . . . . Construction Impeded . | . . . . . Haulers Reinforced . | . . . . . Stealth | -11 -10 -10 -9 -9 --------- Run | Scr Mat Min Mat Sto Distress Signals 4 | . . . 2 2 Communications Jammed . | . . . . . Distress Signals . | . . . . . Times Spotted 134 | . 28 8 48 50 Peak Tracking Total 5 | . 4 3 4 5 Tactical Retreats 11 | . 2 2 6 1 Traps | -11 -10 -10 -9 -9 ------- Run | Scr Mat Min Mat Sto Traps Triggered 5 | . 1 . 2 2 Indirectly . | . . . . . Trap Hack Attempts . | . . . . . Triggered . | . . . . . Disarmed . | . . . . . Reprogrammed . | . . . . . Reused . | . . . . . Traps Extracted . | . . . . . Installed . | . . . . . Triggered . | . . . . . Machines | -11 -10 -10 -9 -9 ---------- Run | Scr Mat Min Mat Sto Machines Disabled 14 | . 7 . 1 6 Max in Single Turn 7 | . 7 . 1 1 Machines Sabotaged . | . . . . . Garrisons Compromised . | . . . . . Overloaded Fab Kills . | . . . . . Fab Network Shutdowns . | . . . . . Hacking | -11 -10 -10 -9 -9 --------- Run | Scr Mat Min Mat Sto Machines Accessed 23 | . 7 . 8 8 Terminals 19 | . 5 . 7 7 Fabricators . | . . . . . Repair Stations 1 | . . . . 1 Recycling Units 2 | . 2 . . . Scanalyzers 1 | . . . 1 . Garrison Access . | . . . . . Total Hacks 66 | . 16 . 23 27 Successful 36 | . 7 . 12 17 Failed 30 | . 9 . 11 10 Catastrophic 3 | . 1 . 1 1 Database Lockouts . | . . . . . Manual 36 | . 6 . 12 18 Terminals 58 | . 12 . 21 25 Fabricators . | . . . . . Repair Stations 2 | . . . . 2 Recycling Units 4 | . 4 . . . Scanalyzers 2 | . . . 2 . Garrison Access . | . . . . . Terminal Hacks 22 | . 4 . 9 9 Robot Analysis 3 | . 1 . 2 . Prototype ID Bank 3 | . 1 . 2 . Open Door 2 | . . . . 2 Branch Access Points 2 | . 1 . 1 . Emergency Access Points 1 | . . . 1 . Terminal Index 1 | . . . . 1 Unreport Threat 2 | . . . . 2 Locate Traps 1 | . 1 . . . Disarm Traps 1 | . . . . 1 Transport Status 1 | . . . 1 . Hauler Manifests 1 | . . . 1 . Zone Layout 4 | . . . 1 3 Fabricator Hacks . | . . . . . Repair Station Hacks 2 | . . . . 2 Scan Component 1 | . . . . 1 Repair 1 | . . . . 1 Recycling Unit Hacks 2 | . 2 . . . Process 1 | . 1 . . . Retrieve Matter 1 | . 1 . . . Scanalyzer 2 | . . . 2 . Insert Component 1 | . . . 1 . Analyze 1 | . . . 1 . Garrison Access Hacks . | . . . . . Unauthorized Hacks 8 | . 1 . 1 6 Terminals 8 | . 1 . 1 6 Track 5 | . 1 . 1 3 Botnet 3 | . . . . 3 Fabricators . | . . . . . Repair Stations . | . . . . . Recycling Units . | . . . . . Scanalyzers . | . . . . . Garrison Access . | . . . . . Data Cores Recovered . | . . . . . Used . | . . . . . Hacking Detections 20 | . 6 . 8 6 Full Trace Events 3 | . 1 . 1 1 Feedback Events . | . . . . . Feedback Blocked . | . . . . . Robot Schematics Acquired . | . . . . . Robots Built . | . . . . . Matter . | . . . . . Time . | . . . . . Total Robot Build Rating . | . . . . . Part Schematics Acquired . | . . . . . Parts Built . | . . . . . Matter . | . . . . . Time . | . . . . . Total Part Build Rating . | . . . . . Parts Repaired 1 | . . . . 1 Time 32 | . . . . 32 Parts Recycled . | . . . . . Recycled Matter 105 | . 105 . . . Retrieved Matter 191 | . 191 . . . Retrieved Components . | . . . . . Parts Scanalyzed 1 | . . . 1 . Part Schematics Acquired . | . . . . . Parts Damaged . | . . . . . Bothacking | -11 -10 -10 -9 -9 ------------ Run | Scr Mat Min Mat Sto Used RIF Installer . | . . . . . Robots Hacked . | . . . . . Non-combat . | . . . . . Combat . | . . . . . Robot Hacks Applied . | . . . . . Relay Couplers Released . | . . . . . Robots Rewired . | . . . . . Allies Hacked . | . . . . . Hacks Repelled . | . . . . . Allies | -11 -10 -10 -9 -9 -------- Run | Scr Mat Min Mat Sto Total Allies 2 | . . 2 . . Largest Group 2 | . . 2 1 . Highest-Rated Group 46 | . . 46 31 . Highest-Rated Ally 31 | . . 31 31 . Total Orders . | . . . . . Ally Attacks 33 | . . 6 27 . Total Damage 524 | . . 107 417 . Kills 8 | . . 1 7 . Allies Corrupted . | . . . . . Allies Melted . | . . . . . Intel | -11 -10 -10 -9 -9 ------- Run | Scr Mat Min Mat Sto Robot Analysis Total 3 | . 1 . 2 . Derelict Logs Recovered 1 | . . 1 . . Drone Launches . | . . . . . Drone Recoveries . | . . . . . Exploration | -11 -10 -10 -9 -9 ------------- Run | Scr Mat Min Mat Sto Turns Passed 6976 | 134 1615 1290 2326 1611 Spaces Moved 3029 | 64 779 685 943 558 Core 3 | 3 . . . . Treads 3026 | 61 779 685 943 558 Legs . | . . . . . Wheels . | . . . . . Hover . | . . . . . Flight . | . . . . . Fastest Speed 50 | 50 160 180 180 200 Average Speed 188 | 154 176 180 200 201 Slowest Speed 260 | 160 180 180 260 260 Overloaded Moves . | . . . . . Propulsion Burnouts . | . . . . . Robots Hopped . | . . . . . Cave-ins Triggered . | . . . . . Exploration Rate (%) 68 | 5 98 98 67 74 Regions Visited 4 Branch Regions 2 Pre-discovered Areas . | . . . . . Known Exits Taken 2 | . 1 . 1 . Unknown Exits Taken 2 | 1 . 1 . . Scrap Searched 3 | . . 3 . . Spaces Dug . | . . . . . Terrain Destroyed 115 | . 53 14 28 20 Melee . | . . . . . Projectile 1 | . . . . 1 AOE 114 | . 53 14 28 19 Actions | -11 -10 -10 -9 -9 --------- Run | Scr Mat Min Mat Sto Total 3650 | 81 883 707 1168 811 Wait 87 | . 2 . 26 59 Move 3025 | 63 778 684 942 558 Hop . | . . . . . Pick Up 59 | 3 16 . 24 16 Fast Attach 20 | 7 . . 8 5 Attach 15 | . 3 . 8 4 Detach . | . . . . . Swap 31 | . 6 3 8 14 Drop 43 | . . . 18 25 Fire 366 | 8 78 19 134 127 Melee 1 | . . . . 1 Ram . | . . . . . Kick . | . . . . . Crush 1 | . . 1 . . Escape Stasis 2 | . . . . 2 Rewire . | . . . . . Trap . | . . . . . Miscellaneous . | . . . . . Route ------- -11/Scrapyard -10/Materials (discovered 4 exits: *Mat x3 / *Min) -10/Mines (discovered 2 exits: *Mat x2) -9/Materials (discovered 6 exits: [*Mat x2] / *Min x2 / *Sto x2) -9/Storage (discovered 1 exit: [*Mat]) History --------- Turn | Location | Event 35 | -11/Scrapyard | Discovered new exit (range 16) 135 | -11/Scrapyard | Entered Materials 318 | -10/Materials | Build established: Mutant 480 | -10/Materials | Discovered new exit (range 16) 700 | -10/Materials | Build established: Hauler-Mutant 999 | -10/Materials | Discovered new exit (range 14) 1227 | -10/Materials | Identified exit to Mines 1678 | -10/Materials | Discovered new exit (range 15) 1750 | -10/Materials | Entered Mines 1828 | -10/Mines | Learned location of 1 exit from Materials 2324 | -10/Mines | Discovered new exit (range 9) 2948 | -10/Mines | Discovered new exit (range 15) 3040 | -10/Mines | Entered Materials 3040 | -9/Materials | Accompanied by 1 ally 3040 | -9/Materials | Evolved 2 slots: Utility x2 3041 | -9/Materials | Identified exit to Mines 3045 | -9/Materials | Led the pair of lost Derelicts to an unsafe place 3604 | -9/Materials | Discovered new exit (range 13) 3862 | -9/Materials | Discovered new exit (range 13) 4077 | -9/Materials | Discovered new exit (range 16) 4776 | -9/Materials | Discovered new exit (range 11) 5316 | -9/Materials | Identified exit to Storage 5366 | -9/Materials | Entered Storage 5540 | -9/Storage | Repaired Hvy. Assault Rifle 6336 | -9/Storage | Core integrity fell below 50% 6379 | -9/Storage | Destroyed 7 combat bots 6618 | -9/Storage | Discovered new exit (range 5) 6647 | -9/Storage | Core integrity fell below 20% 6977 | -9/Storage | Destroyed by Y-45 Defender with Heavy Assault Rifle Last Messages --------------- 06801_ Triggered Stasis Trap. 06801_ A bubble of rippling energy engulfs the area. 06801_ Field strength at 70. 06803_ Field strength at 40. 06804_ Field strength at 10. 06805_ Stasis field depleted. 06817_ U-05 Engineer lays Concrete. 06819_ Connecting with Terminal... >>Trojan(Track) Trojan loaded successfully. Testing... Tracking enabled and active. >>Layout(Zone) Retrieving Zone 8H layout... Downloaded map data. 06866_ Connecting with Terminal... 06868_ Terminal disabled. 06869_ K-01 Serf collects debris. 06870_ Dropped Mining Laser. 06872_ K-01 Serf collects debris. Map ----- +----------------------------------------------------+ | + *%!#?????????????????????????????????? | | #### #?????????????????????????????????? | | #??#!#?????????????????????????????????? | | ###??#!#?????????????????????????????????? | | #????#%#?????????????????????????????????? | | ######/#####+##??????????????????????????? | | # !!!=!%+ #????????????????????????? | | #% =*==*=### +????????????????????????? | | / * #??????????????????????????????? | | # """" #??????????????????????????????? | | # """"" #??????????????????????????????? | | # """"" #??????????????????????????????? | | # #??????????????????????????????? | | # #??????????????????????????????? | | ###########??????????????????????????????? | | #????#??????????????????##???????????????? | | #????#??????????????????u ???????????????? | | #????#?????????????????? #??????????????? | | #????#?????????????????? #??????????????? | | #????#??????????????????# +??????????????? | | #????#??????????????????# #??????????????? | | ######??????????????????# #??????????????? | | ????????????????????????# #??????????????? | | ??????????????????####### ####???????????? | | ????????????????+ +???????????? | | + """ # "???????#######@## #???????????? | | # """ # "???????????? # #???????????? | | # """ # "?????????? # #???????????? | | + # "?????????# "" # #???????????? | | # """ ##########???# "T # #???????????? | | # """ #????????????# "" # #???????????? | | # """ #????????????# # #???????????? | | # """ #????????????####Y### #???????????? | | # """ #???????????????##??# #???????????? | | # #???????????????????# #???????????? | | ###############?????????#### #???????????? | | # #?????????# #???????????? | | # #?????????# #???????????? | | + #?????????# #???????????? | | # #?????????# #???????????? | | # #?????????# #???????????? | | # #?????????# #???????????? | | ###############?????????# #?##########? | | ##????????###???????????# #?# #? | | ########## ############# ### #? | | ^ | # """" #? | | ^ + """" #? | | # """" #? | | ############################### """" #? | | ##?????????????????????????????# ?? | +----------------------------------------------------+ Best States ------------- Heat Dissipation 38 Energy Generation 14 Energy Capacity 280 Matter Stores 300 Matter Capacity 300 Sight Range 16 Terrain Scan Density 10 Armor Coverage 225 Core Shielding 20 Evasion (%) 40 Recoil Reduction 2 Item Schematics ----------------- None Robot Schematics ------------------ None Fabricated ------------ Nothing Alien Tech Used ----------------- None Achievements -------------- None Challenges ------------ None Game ------ Seed TargetingDefenseMaul Manual? 0 Play Time 00:33:11 Cumulative 458.5 hours Start 2020.09.07 @ 19:22:24 End 2020.09.07 @ 19:55:13 Sessions 1 Manual Loads 0 Difficulty Rogue Special Mode None Game No. 309 Rogue 309 Adventurer 0 Explorer 0 Win Type - Total 4 Types 4/0/0/0/0/0/0 Lore% 86 Gallery% 87 Achievement% 66 Wizard Run 0 Options --------- ASCII 0 Keyboard 0 Movement Mouse Keybinds 1 Fullscreen 2 Font 24/Smallcaps Map View 76x50 Tactical HUD 1 Map Filters NONE Filters NONE Steam 1 RUN: 90d8ab0f-b5ad-422a-9819-2ab872ffa0fc